[Event "45th FIDE Womens Olympiad 2024"]
[Site "Budapest"]
[Date "2024.09.16"]
[Round "6.93"]
[White "Narva, Mai"]
[Black "Lindiawati, Evi"]
[Result "1-0"]
[ECO "B01"]
[WhiteElo "2420"]
[BlackElo "1940"]
[Annotator "TA"]
[PlyCount "97"]
[EventDate "2024.09.05"]
[EventType "team-tourn"]
[EventCountry "HUN"]
[SourceTitle "playchess.com"]
[Source "ChessBase"]
[SourceQuality "1"]
[WhiteTeam "Estonia"]
[BlackTeam "Indonesia"]
[WhiteTeamCountry "EST"]
[BlackTeamCountry "INA"]
[TimeControl "40/5400+30:1800+30"]

{[%evp 11,97,77,58,32,35,36,32,31,33,32,34,26,30,29,30,38,41,6,10,4,9,5,39,43,33,41,42,37,32,29,50,39,145,149,150,145,145,149,202,197,201,185,189,197,228,237,228,229,353,342,341,333,333,410,402,396,385,402,419,417,539,459,667,664,654,708,725,720,1036,974,1235,1265,1169,1071,1382,1416,6825,11331,29963,29938,1999,29973,29973,29974,29974,29975,29967,29970]} 1. e4 d5 2. exd5 Qxd5 3. Nc3 Qd6 4. d4 a6 5. Nf3 Nf6 6. g3 Bg4 7. Bg2 Nc6 8. d5 Ne5 9. O-O {[%cal Bh1f1,Bf1e1,Be1e5][%mdl 32] White is slightly better.} O-O-O {[%cal Rf6d5]} 10. Bf4 Nxf3+ 11. Bxf3 Bxf3 12. Qxf3 e5 13. dxe6 Qxe6 14. Rfe1 Qf5 {[%cal Of8d6]} 15. Re5 Qh3 16. Re2 (16. Rd1 {looks sharper.} Bb4 17. Red5 Nxd5 18. Nxd5 Bd6 19. Bxd6 Rxd6 20. Qc3) 16... Qh5 {Wards off Bg5} 17. Qxh5 $40 {[%mdl 128] White has some attack.} Nxh5 18. Bg5 f6 19. Bd2 Bd6 20. Ne4 {[%cal Bc3e4,Be4g5,Bg5f7][%mdl 32] [#] aiming for g4.} f5 21. Ng5 h6 {White now steadily converts the win.} ({Black should play} 21... Rde8 $14 22. Rae1 Rxe2 23. Rxe2 Kd7) 22. Nf7 $1 $16 {[%csl LRd8,LRh8]} Rde8 23. Rae1 {[%cal Ba1e1,Be1e2,Be2e7,Be7f7,Bf7f5][%mdl 32] White has more active pieces.} Rxe2 24. Rxe2 (24. Nxh8 $2 Rxd2 25. Kf1 Rxc2 $19) 24... Rf8 (24... Rg8 $16 {is a better defense.} 25. Nxd6+ cxd6) 25. Nxd6+ $18 cxd6 {[%mdl 4096] Endgame. KRB-KRN} 26. Re7 g5 27. Bb4 Rf6 28. Bc3 Rg6 29. Rf7 Re6 (29... b5 $142 30. Rxf5 Kd7 31. Rf7+ Ke8) 30. Rxf5 Kd7 31. Kg2 ({Resist} 31. h4 Rg6 32. hxg5 hxg5 $18) 31... Ke7 32. Kf3 {[#] Strongly threatening Kg4.} Rg6 33. Kg4 Ng7 34. Bxg7 Rxg7 {KR-KR} 35. Kh5 {Prevents Rg6} Ke6 36. g4 Rc7 (36... Rh7 $142 37. Kg6 Rh8) 37. c3 Rc4 38. h3 {[%cal Bh2h3,Bh3h4,Bh4h5,Bh5h6][%mdl 32]} ({Less strong is} 38. Kxh6 Rxg4 39. Kg6 (39. Rxg5 Rh4+ 40. Kg6 Rxh2 $16) 39... Rh4 $16) 38... b5 39. Kxh6 b4 40. Kxg5 bxc3 41. bxc3 Rxc3 42. h4 d5 {[%cal Bd6d5,Bd5d4,Bd4d3,Bd3d2][%mdl 32]} 43. h5 {Black must now prevent h6.} d4 44. h6 {White wants to mate with h7.} Rh3 45. Rf8 Ke7 46. Rf4 d3 {White mates.} 47. Kg6 Rh4 48. Rd4 d2 49. f3 {Weighted Error Value: White=0.07 (flawless) /Black=0.46.  Mistake:       	---       	Black=4      Inaccurate:     	White=1     	Black=1      OK:         	White=16    	Black=11     Best:        	White=4     	Black=1} 1-0

[Event "45th FIDE Womens Olympiad 2024"]
[Site "Budapest"]
[Date "2024.09.16"]
[Round "6.94"]
[White "Nugroho, Angel Ruth"]
[Black "Olde, Margareth"]
[Result "1/2-1/2"]
[ECO "D02"]
[WhiteElo "1939"]
[BlackElo "2135"]
[Annotator "ChessBase"]
[PlyCount "187"]
[EventDate "2024.09.05"]
[EventType "team-tourn"]
[EventCountry "HUN"]
[SourceTitle "playchess.com"]
[Source "ChessBase"]
[SourceQuality "1"]
[WhiteTeam "Indonesia"]
[BlackTeam "Estonia"]
[WhiteTeamCountry "INA"]
[BlackTeamCountry "EST"]
[TimeControl "40/5400+30:1800+30"]

1. d4 Nf6 2. Bf4 d5 3. Nf3 c5 4. e3 Nc6 5. c3 Qb6 6. Qc2 Nh5 7. Be5 f6 8. Bg3 g6 9. Nbd2 Bf5 10. dxc5 Qxc5 11. Nb3 Qxe3+ 12. fxe3 Bxc2 13. Bf2 e5 14. Rc1 Bf5 15. h3 Ng7 16. c4 Bb4+ 17. Nfd2 dxc4 18. Bxc4 Be6 19. Ke2 O-O 20. a3 Be7 21. Rhd1 Rfd8 22. Bb5 Rac8 23. Nc5 Bxc5 24. Rxc5 Ne7 25. Rdc1 Rxc5 26. Rxc5 a6 27. Bd3 Rd7 28. b4 Ne8 29. b5 Nc7 30. bxa6 Nxa6 31. Ra5 Nc6 32. Rb5 Kf7 33. Be4 Nd8 34. Bd3 Nc7 35. Rc5 Nd5 36. Bb5 Rc7 37. Rxc7+ Nxc7 38. Ba4 Nd5 39. Bc2 Nc6 40. Ne4 Ke7 41. Nc5 Bc8 42. Bb3 Nc3+ 43. Kd3 Nb5 44. a4 Nd6 45. Kc3 Na5 46. Bd5 b6 47. Ne4 Nxe4+ 48. Bxe4 Kd6 49. Kb4 Bb7 50. Bf3 Ba6 51. h4 Bd3 52. e4 Kc7 53. Kc3 Bf1 54. g3 Nb7 55. Kb4 Nd6 56. Kc3 Kc6 57. Kd2 Nb7 58. Bd1 Bg2 59. Bc2 Nd6 60. Ke3 Nc4+ 61. Kd3 Bf1+ 62. Kc3 Nd6 63. Kd2 Bh3 64. Ke3 Bg4 65. Bb3 f5 66. Bd5+ Kc7 67. Be1 fxe4 68. Bxe4 Nc4+ 69. Kf2 Bd7 70. Bc2 Kd6 71. Bb4+ Kd5 72. Kf3 Kd4 73. Be4 Bxa4 74. Bb1 Bd1+ 75. Kf2 e4 76. Be7 b5 77. Bf6+ Kd5 78. Bc3 e3+ 79. Ke1 Bf3 80. Bc2 Kc5 81. Bd3 Nd6 82. Be5 b4 83. Bf4 Nf5 84. Bxf5 gxf5 85. Bxe3+ Kc4 86. Kd2 b3 87. Kc1 Kc3 88. Bd2+ Kd3 89. Bf4 Bd5 90. Kb2 Ke4 91. Kc3 Kf3 92. Kb2 Ke2 93. Be5 Kd3 94. Bf4 1/2-1/2

[Event "45th FIDE Womens Olympiad 2024"]
[Site "Budapest"]
[Date "2024.09.16"]
[Round "6.95"]
[White "Blokhin, Sofia"]
[Black "Yuliana, Evi"]
[Result "1/2-1/2"]
[ECO "B01"]
[WhiteElo "2036"]
[BlackElo "1912"]
[Annotator "NA"]
[PlyCount "81"]
[EventDate "2024.09.05"]
[EventType "team-tourn"]
[EventCountry "HUN"]
[SourceTitle "playchess.com"]
[Source "ChessBase"]
[SourceQuality "1"]
[WhiteTeam "Estonia"]
[BlackTeam "Indonesia"]
[WhiteTeamCountry "EST"]
[BlackTeamCountry "INA"]
[TimeControl "40/5400+30:1800+30"]

1. e4 d5 2. exd5 Qxd5 3. Nc3 Qa5 4. d4 c6 5. Nf3 Bf5 6. Bc4 e6 7. O-O Nf6 8. Re1 Bb4 9. Bd2 O-O 10. h3 Nbd7 11. Nh4 Bg6 12. Nxg6 hxg6 13. a3 Bxc3 14. Bxc3 Qc7 15. Qf3 Rfd8 16. Rad1 Nb6 17. Bb3 Nbd5 18. Bd2 b5 19. Bg5 Rac8 20. c3 Re8 21. Bh4 Qf4 22. Qxf4 Nxf4 23. Bg3 N4d5 24. a4 a6 25. axb5 cxb5 26. Ra1 Rc6 27. Ra5 Ra8 28. Rea1 Rb6 29. Bc2 Rc8 30. Bd3 Rcc6 31. Kf1 g5 32. h4 gxh4 33. Bxh4 Nf4 34. Be2 Nxe2 35. Kxe2 Nd5 36. Rc1 Rc4 37. Bg3 Rbc6 38. Kd3 Nb4+ 39. Kd2 Nd5 40. Kd3 Nb4+ 41. Ke4 1/2-1/2

[Event "45th FIDE Womens Olympiad 2024"]
[Site "Budapest"]
[Date "2024.09.16"]
[Round "6.96"]
[White "Adeline, Clementia"]
[Black "Olde, Grete"]
[Result "1/2-1/2"]
[ECO "D36"]
[WhiteElo "1550"]
[BlackElo "1952"]
[Annotator "NA"]
[PlyCount "75"]
[EventDate "2024.09.05"]
[EventType "team-tourn"]
[EventCountry "HUN"]
[SourceTitle "playchess.com"]
[Source "ChessBase"]
[SourceQuality "1"]
[WhiteTeam "Indonesia"]
[BlackTeam "Estonia"]
[WhiteTeamCountry "INA"]
[BlackTeamCountry "EST"]
[TimeControl "40/5400+30:1800+30"]

1. d4 d5 2. c4 e6 3. Nc3 Nf6 4. cxd5 exd5 5. Bg5 Be7 6. e3 O-O 7. Bd3 Re8 8. Nge2 c6 9. Qc2 Nbd7 10. O-O h6 11. Bh4 Ne4 12. Bxe7 Qxe7 13. Bxe4 dxe4 14. Ng3 Nf6 15. Rae1 h5 16. f3 exf3 17. Rxf3 Bg4 18. Rff1 c5 19. d5 b5 20. e4 b4 21. Nd1 Qe5 22. Nf2 h4 23. Ne2 Bxe2 24. Rxe2 Nxd5 25. Kh1 Nf4 26. Ng4 Qg5 27. Ref2 Nh5 28. Qe2 Qg6 29. e5 Re7 30. Rf5 Rae8 31. Rxh5 c4 32. Rff5 c3 33. Rhg5 Qc6 34. Nf6+ Kf8 35. Nh7+ Kg8 36. Nf6+ Kf8 37. Nh7+ Kg8 38. Nf6+ 1/2-1/2

[Event "45th FIDE Womens Olympiad 2024"]
[Site "Budapest"]
[Date "2024.09.16"]
[Round "6.97"]
[White "Cvitan, Ena"]
[Black "Tan, Li Ting"]
[Result "0-1"]
[ECO "E46"]
[WhiteElo "2259"]
[BlackElo "2037"]
[Annotator "TA"]
[PlyCount "80"]
[EventDate "2024.09.05"]
[EventType "team-tourn"]
[EventCountry "HUN"]
[SourceTitle "playchess.com"]
[Source "ChessBase"]
[SourceQuality "1"]
[WhiteTeam "Croatia"]
[BlackTeam "Malaysia"]
[WhiteTeamCountry "CRO"]
[BlackTeamCountry "MAS"]
[TimeControl "40/5400+30:1800+30"]

{[%evp 19,80,0,0,0,13,-12,-19,0,8,0,0,-5,13,0,0,0,40,35,60,33,47,43,44,25,36,0,8,-20,0,-33,-38,-108,-124,-255,-248,-473,-479,-459,-454,-459,-458,-568,-560,-560,-570,-835,-846,-842,-681,-686,-675,-643,-605,-614,-606,-839,-833,-744,-706,-709,-708,-676,-652]} 1. d4 Nf6 2. c4 e6 3. Nc3 Bb4 4. e3 O-O 5. Nge2 d5 6. a3 Be7 7. cxd5 exd5 8. Nf4 c6 9. Bd3 Re8 10. O-O Nbd7 {[%cal Bb8d7,Bd7f8,Bf8g6,Bg6e5][%mdl 32]} 11. f3 Nf8 12. Bd2 {[%cal Bc1d2,Bd2e1,Be1f2,Bf2h4][%mdl 32]} Ng6 13. Nfe2 {The position is equal.} c5 14. Be1 a6 15. Bf2 cxd4 16. Nxd4 Ne5 17. Rc1 Bc5 18. Bh4 Be7 19. Re1 Be6 20. Bb1 Rc8 21. Qb3 b5 22. Rcd1 Nc4 23. Kh1 Qb6 {[%cal Of6g4]} 24. Qc2 g6 {[%cal Of6g4]} 25. e4 {[#]} (25. Bg5 $15) 25... Nxe4 $1 $17 26. fxe4 {This move loses the game for White.} (26. Bxe7 $17 {was the only chance.} Nxc3 27. Qxc3 Rxe7 28. Qb4) 26... Bxh4 $19 27. exd5 $2 (27. Re2) 27... Bxe1 {Black is clearly winning.} 28. dxe6 Bxc3 ({Don't play} 28... fxe6 29. Rxe1 Qxd4 30. Qe2 $19) 29. exf7+ Kxf7 30. bxc3 Ne3 31. Qb3+ Kg7 32. Re1 Qb7 33. Re2 Qd5 {[%cal Od5d4] [#] White must now prevent ...Qxd4!} 34. Qb2 Nc4 35. Qa2 Re5 36. Bd3 Rce8 37. a4 Rxe2 38. Bxe2 Ne3 39. Qxd5 Nxd5 40. axb5 Nxc3 {Weighted Error Value: White=0.53/Black=0.16 (very precise) .  Mistake:       	White=3     	---        Inaccurate:     	White=5     	Black=1      OK:         	White=7     	Black=9      Best:        	---       	Black=2      Strong:       	---       	Black=1} 0-1

[Event "45th FIDE Womens Olympiad 2024"]
[Site "Budapest"]
[Date "2024.09.16"]
[Round "6.98"]
[White "Azhar, Puteri Munajjah Az-Z"]
[Black "Berke, Ana"]
[Result "1-0"]
[ECO "A04"]
[WhiteElo "2014"]
[BlackElo "2093"]
[Annotator "NA"]
[PlyCount "89"]
[EventDate "2024.09.05"]
[EventType "team-tourn"]
[EventCountry "HUN"]
[SourceTitle "playchess.com"]
[Source "ChessBase"]
[SourceQuality "1"]
[WhiteTeam "Malaysia"]
[BlackTeam "Croatia"]
[WhiteTeamCountry "MAS"]
[BlackTeamCountry "CRO"]
[TimeControl "40/5400+30:1800+30"]

1. Nf3 c5 2. g3 Nc6 3. Bg2 e5 4. d3 g6 5. O-O Nge7 6. e4 Bg7 7. Be3 d6 8. a4 O-O 9. Nc3 Nd4 10. Nd5 h6 11. Nxe7+ Qxe7 12. c3 Nxf3+ 13. Bxf3 f5 14. exf5 Bxf5 15. Bd5+ Kh7 16. a5 Rae8 17. Ra4 Bf6 18. Qd2 g5 19. b4 Bd7 20. Ra3 Bc6 21. Be4+ Kg7 22. c4 cxb4 23. Qxb4 a6 24. Rb3 Rf7 25. Bxc6 bxc6 26. Qb6 Qd7 27. Qxa6 h5 28. Rfb1 Be7 29. Qb7 Qg4 30. Qxc6 Ref8 31. R3b2 h4 32. Qg2 Rf3 33. gxh4 Qf5 34. Rb7 Rf7 35. Bxg5 Kh7 36. Rxe7 Rxe7 37. Bxe7 Qxd3 38. Rb7 Qd1+ 39. Qf1 Qd4 40. Bg5+ Kg6 41. Be3 Rxe3 42. fxe3 Qxe3+ 43. Kg2 Qe4+ 44. Qf3 Qxc4 45. Qf7+ 1-0

[Event "45th FIDE Womens Olympiad 2024"]
[Site "Budapest"]
[Date "2024.09.16"]
[Round "6.99"]
[White "Ivekovic, Tihana"]
[Black "Azhar, Puteri Rifqah Fahada"]
[Result "1/2-1/2"]
[ECO "E01"]
[WhiteElo "2143"]
[BlackElo "1947"]
[Annotator "NA"]
[PlyCount "92"]
[EventDate "2024.09.05"]
[EventType "team-tourn"]
[EventCountry "HUN"]
[SourceTitle "playchess.com"]
[Source "ChessBase"]
[SourceQuality "1"]
[WhiteTeam "Croatia"]
[BlackTeam "Malaysia"]
[WhiteTeamCountry "CRO"]
[BlackTeamCountry "MAS"]
[TimeControl "40/5400+30:1800+30"]

1. d4 d5 2. c4 c6 3. Nf3 Nf6 4. g3 e6 5. Bg2 Nbd7 6. O-O Bd6 7. Nc3 O-O 8. Nd2 Re8 9. e4 dxe4 10. Ndxe4 Nxe4 11. Nxe4 Be7 12. Qc2 Nf6 13. Rd1 Qb6 14. Be3 Qc7 15. Bf4 Qa5 16. a3 Nxe4 17. Bxe4 Qh5 18. Bc7 Bd8 19. Bxd8 Rxd8 20. Qb3 Rd6 21. Bf3 Qa5 22. Qe3 Qd8 23. Rac1 h6 24. b4 a6 25. a4 Qf6 26. a5 Rd8 27. d5 Bd7 28. dxc6 Bxc6 29. Bxc6 bxc6 30. Qb6 Rdc8 31. Rd7 Qb2 32. Rcd1 Qc3 33. c5 Qc4 34. Rb7 Qc2 35. Rdd7 Qb1+ 36. Kg2 Qe4+ 37. Kf1 Qb1+ 38. Ke2 Qc2+ 39. Kf3 Qf5+ 40. Ke3 Qe5+ 41. Kf3 Qf5+ 42. Ke2 Qc2+ 43. Ke1 Qb1+ 44. Kd2 Qb2+ 45. Ke3 Qe5+ 46. Kd3 Qf5+ 1/2-1/2

[Event "45th FIDE Womens Olympiad 2024"]
[Site "Budapest"]
[Date "2024.09.16"]
[Round "6.100"]
[White "Nithyalakshmi, Sivanesan"]
[Black "Vujnovic, Patricija"]
[Result "1/2-1/2"]
[ECO "B18"]
[WhiteElo "1912"]
[BlackElo "2134"]
[Annotator "NA"]
[PlyCount "84"]
[EventDate "2024.09.05"]
[EventType "team-tourn"]
[EventCountry "HUN"]
[SourceTitle "playchess.com"]
[Source "ChessBase"]
[SourceQuality "1"]
[WhiteTeam "Malaysia"]
[BlackTeam "Croatia"]
[WhiteTeamCountry "MAS"]
[BlackTeamCountry "CRO"]
[TimeControl "40/5400+30:1800+30"]

1. e4 c6 2. d4 d5 3. Nc3 dxe4 4. Nxe4 Bf5 5. Nc5 e5 6. Nb3 exd4 7. Nxd4 Bg6 8. c3 Nf6 9. Ngf3 Bc5 10. Bc4 O-O 11. O-O Nbd7 12. Bf4 Ne4 13. Bd3 Qf6 14. Be3 Bb6 15. Bc2 Ndc5 16. Nd2 Rfe8 17. N2f3 Rad8 18. Qb1 h6 19. a4 Bc7 20. Rd1 Bh5 21. Qa2 Ng5 22. Bxg5 hxg5 23. h3 g4 24. hxg4 Bxg4 25. Re1 g6 26. Rxe8+ Rxe8 27. Qc4 Ne6 28. Nxe6 Bxe6 29. Qd4 Qxd4 30. Nxd4 Bd5 31. Bd3 c5 32. Nb5 Bb8 33. a5 a6 34. Na3 Rd8 35. Be2 Bb3 36. Nc4 Bc7 37. g3 Kg7 38. Ra3 Bc2 39. Bf3 Bd3 40. Ne3 Re8 41. Kg2 g5 42. Rb3 Bxa5 1/2-1/2

[Event "45th FIDE Womens Olympiad 2024"]
[Site "Budapest"]
[Date "2024.09.16"]
[Round "6.101"]
[White "Movsesian, Julia"]
[Black "Nassr, Lina"]
[Result "1-0"]
[ECO "B42"]
[WhiteElo "2198"]
[BlackElo "2010"]
[Annotator "TA"]
[PlyCount "63"]
[EventDate "2024.09.05"]
[EventType "team-tourn"]
[EventCountry "HUN"]
[SourceTitle "playchess.com"]
[Source "ChessBase"]
[SourceQuality "1"]
[WhiteTeam "Czech Republic"]
[BlackTeam "Algeria"]
[WhiteTeamCountry "CZE"]
[BlackTeamCountry "ALG"]
[TimeControl "40/5400+30:1800+30"]

{[%evp 14,63,49,24,33,13,8,17,63,15,85,4,166,101,94,12,12,12,26,17,35,35,183,172,247,243,277,202,384,326,320,308,658,667,677,679,629,505,501,492,579,602,584,545,1452,1393,2471,1363,1254,1083,1504,1468]} 1. e4 c5 2. Nf3 e6 3. d4 cxd4 4. Nxd4 a6 5. Bd3 Bc5 6. Nb3 Ba7 7. Qg4 Nf6 8. Qg3 $1 {[%cal Oe4e5] [#] Threatens to win with e5!} d6 9. c4 {[%cal Ob1c3]} Nc6 10. Nc3 {[%cal Oe1g1]} h5 (10... Nh5 $11 {feels stronger.} 11. Qh3 Nf6) 11. Bg5 (11. O-O $14) 11... Ne5 (11... h4 $1 $11 12. Bxh4 Nh5) 12. Rd1 ({White should play} 12. Be2 $16) 12... Neg4 $2 (12... h4 $1 $11 {and Black stays safe.} 13. Qf4 Qc7 14. Bxf6 gxf6) 13. O-O (13. c5 $18) 13... h4 $16 14. Qxg4 (14. Bxh4 $16 {aiming for Be2.} Nxh2 15. Rfe1 (15. Qxh2 g5 $11) (15. Kxh2 Ng4+ 16. Kg1 Rxh4 $17)) 14... Nxg4 $11 15. Bxd8 Kxd8 {[#]} 16. c5 $1 h3 (16... Bxc5 $2 {too greedy.} 17. Nxc5 Ke7 18. Be2 $18) (16... Ne5 17. Be2) 17. g3 d5 {White stays focused until the end.} (17... Ne5 $14) 18. exd5 $18 exd5 (18... Nf6 $142 19. Bc4 Kc7) 19. Nxd5 {Hoping for Be2.} Be6 20. Be4 Kc8 $2 (20... Bxd5 {was called for.} 21. Bxd5 Kc7) 21. Na5 {[%cal Bb3a5,Ba5c4,Bc4d6][%mdl 32]} Rb8 (21... Bxc5 $2 {loses.} 22. Rc1 $18) 22. b4 Bd7 $2 (22... Nf6) 23. Nc4 {White is clearly winning.} Be6 24. Nd6+ Kd7 {[%cal Bc8d7,Bd7c7,Bc7c6][%mdl 32]} 25. Nf4 {Excellent horsemanship.} Kc7 26. Bd5 Bxd5 27. Nxd5+ Kc6 28. Rfe1 {[%cal Oe1e7] Strongly threatening Re7!} Rhf8 {Black is weak on the dark squares} 29. Re7 Rbc8 {Inhibits Rc7+.} 30. Nxc8 Rxc8 31. a4 {Intending Nb6 and mate.} a5 32. Nb6 {Weighted Error Value: White=0.37/Black=0.74.  Loses game:     	---       	Black=1      Mistake:       	White=4     	Black=6      Inaccurate:     	---       	Black=1      OK:         	White=5     	Black=3      Best:        	White=1     	Black=2} 1-0

[Event "45th FIDE Womens Olympiad 2024"]
[Site "Budapest"]
[Date "2024.09.16"]
[Round "6.102"]
[White "Latreche, Sabrina"]
[Black "Rodshtein, Tereza"]
[Result "0-1"]
[ECO "D00"]
[WhiteElo "2030"]
[BlackElo "2149"]
[Annotator "NA"]
[PlyCount "86"]
[EventDate "2024.09.05"]
[EventType "team-tourn"]
[EventCountry "HUN"]
[SourceTitle "playchess.com"]
[Source "ChessBase"]
[SourceQuality "1"]
[WhiteTeam "Algeria"]
[BlackTeam "Czech Republic"]
[WhiteTeamCountry "ALG"]
[BlackTeamCountry "CZE"]
[TimeControl "40/5400+30:1800+30"]

1. d4 d5 2. Bf4 Nc6 3. e3 f6 4. Bd3 Be6 5. c3 Bf7 6. Nf3 Qd7 7. Qa4 e5 8. dxe5 fxe5 9. Bb5 exf4 10. Ne5 Nxe5 11. Bxd7+ Nxd7 12. Qxf4 Bd6 13. Qg4 Ngf6 14. Qh4 O-O-O 15. Nd2 Ne5 16. O-O Kb8 17. a4 h5 18. a5 Neg4 19. Nf3 Ne4 20. Ng5 Be7 21. Qxg4 hxg4 22. Nxf7 Bd6 23. Nxh8 Rxh8 24. g3 Nd2 25. Rfd1 Nf3+ 26. Kf1 Rxh2 27. Ra4 Rh1+ 28. Ke2 Rxd1 29. Kxd1 Ne5 30. a6 b5 31. Ra1 c6 32. Ke2 Kc7 33. b3 b4 34. cxb4 Bxb4 35. Rh1 Be7 36. e4 d4 37. Rd1 Bc5 38. Kd2 Kb6 39. Rh1 d3 40. Rh5 Bd4 41. Rf5 Kxa6 42. Rf8 Kb7 43. b4 Ka6 0-1

[Event "45th FIDE Womens Olympiad 2024"]
[Site "Budapest"]
[Date "2024.09.16"]
[Round "6.103"]
[White "Korenova, Martina"]
[Black "Nassr, Rania"]
[Result "0-1"]
[ECO "B40"]
[WhiteElo "2104"]
[BlackElo "1866"]
[Annotator "NA"]
[PlyCount "94"]
[EventDate "2024.09.05"]
[EventType "team-tourn"]
[EventCountry "HUN"]
[SourceTitle "playchess.com"]
[Source "ChessBase"]
[SourceQuality "1"]
[WhiteTeam "Czech Republic"]
[BlackTeam "Algeria"]
[WhiteTeamCountry "CZE"]
[BlackTeamCountry "ALG"]
[TimeControl "40/5400+30:1800+30"]

1. e4 c5 2. Nf3 e6 3. b3 Nf6 4. e5 Nd5 5. Nc3 Nxc3 6. dxc3 d5 7. exd6 Qxd6 8. Qe2 Nc6 9. Bb2 Be7 10. g3 Bf6 11. Bg2 O-O 12. Nd2 Qc7 13. O-O-O a6 14. Qh5 Ne5 15. f4 Nd7 16. Ne4 Be7 17. c4 h6 18. Rhe1 f5 19. Nf2 Bf6 20. Qe2 Bxb2+ 21. Kxb2 Re8 22. Nd3 Rb8 23. Ne5 Nxe5 24. Qxe5 Qxe5+ 25. Rxe5 b6 26. Bc6 Re7 27. Rd8+ Kf7 28. Re2 Rc7 29. Bf3 Rd7 30. Rxd7+ Bxd7 31. a4 a5 32. Rd2 Ke7 33. Kc3 Be8 34. h3 Rd8 35. Rxd8 Kxd8 36. g4 g5 37. Kd3 gxf4 38. gxf5 exf5 39. h4 Ke7 40. Ke2 Kd6 41. Kf2 Bc6 42. Bh5 Be4 43. Bd1 Ke5 44. c3 Bb1 45. Kf3 Be4+ 46. Kf2 f3 47. Kg3 h5 0-1

[Event "45th FIDE Womens Olympiad 2024"]
[Site "Budapest"]
[Date "2024.09.16"]
[Round "6.104"]
[White "Djerroud, Chahrazed"]
[Black "Novosadova, Kristyna"]
[Result "0-1"]
[ECO "B33"]
[WhiteElo "1910"]
[BlackElo "2066"]
[Annotator "NA"]
[PlyCount "64"]
[EventDate "2024.09.05"]
[EventType "team-tourn"]
[EventCountry "HUN"]
[SourceTitle "playchess.com"]
[Source "ChessBase"]
[SourceQuality "1"]
[WhiteTeam "Algeria"]
[BlackTeam "Czech Republic"]
[WhiteTeamCountry "ALG"]
[BlackTeamCountry "CZE"]
[TimeControl "40/5400+30:1800+30"]

1. e4 c5 2. Nf3 Nc6 3. d4 cxd4 4. Nxd4 Nf6 5. Nc3 e5 6. Ndb5 d6 7. Bg5 a6 8. Na3 b5 9. Nd5 Be7 10. Bxf6 Bxf6 11. c3 Bg5 12. Nc2 Ne7 13. a4 bxa4 14. Rxa4 O-O 15. Bc4 a5 16. h4 Bh6 17. g4 Bf4 18. Nce3 Bxe3 19. Nxe3 Bd7 20. Ra2 Be6 21. h5 Bxc4 22. Nxc4 d5 23. Nxe5 Qc7 24. Nf3 dxe4 25. Nd4 Rad8 26. Qe2 Nd5 27. O-O Rfe8 28. Rfa1 e3 29. fxe3 Rxe3 30. Qf2 Rg3+ 31. Kh1 Ne3 32. Rxa5 Qb7+ 0-1